[Event "Late-Titled-Tuesday-Blitz-April-30-2024"]
[Site "Chess.com"]
[Date "2024.04.30"]
[Round "8"]
[White "ACollins05"]
[Black "sassassasss"]
[Result "1/2-1/2"]
[WhiteElo "2558"]
[BlackElo "2400"]
[TimeControl "180+1"]
[EndTime "15:30:19 PDT"]
[Termination "Game drawn by stalemate"]

1. d4 {[%clk 0:03:00.9]} 1... Nc6 {[%clk 0:02:59.5]} 2. e4 {[%clk 0:02:57.3]}
2... d6 {[%clk 0:02:59.4]} 3. Nc3 {[%clk 0:02:54.1]} 3... Nf6 {[%clk 0:02:59.7]}
4. Nf3 {[%clk 0:02:51.5]} 4... Bg4 {[%clk 0:02:59.2]} 5. Be2 {[%clk 0:02:52.1]}
5... e5 {[%clk 0:02:59.4]} 6. dxe5 {[%clk 0:02:47.1]} 6... dxe5 {[%clk
0:02:59.3]} 7. Be3 {[%clk 0:02:47.2]} 7... Bb4 {[%clk 0:02:58.9]} 8. Nd2 {[%clk
0:02:39.6]} 8... Bxc3 {[%clk 0:02:51.6]} 9. bxc3 {[%clk 0:02:36.7]} 9... Bxe2
{[%clk 0:02:47.6]} 10. Qxe2 {[%clk 0:02:37.6]} 10... O-O {[%clk 0:02:46.9]} 11.
O-O {[%clk 0:02:36.9]} 11... h6 {[%clk 0:02:38.8]} 12. Qb5 {[%clk 0:02:36.4]}
12... Rb8 {[%clk 0:02:38.3]} 13. Rfd1 {[%clk 0:02:35.5]} 13... a6 {[%clk
0:02:37.9]} 14. Qe2 {[%clk 0:02:33.5]} 14... Qe7 {[%clk 0:02:37.4]} 15. f3
{[%clk 0:02:32.1]} 15... Nh5 {[%clk 0:02:35.1]} 16. Nb3 {[%clk 0:02:31.2]} 16...
Nf4 {[%clk 0:02:34]} 17. Qf2 {[%clk 0:02:25.4]} 17... Rfd8 {[%clk 0:02:32.8]}
18. Rab1 {[%clk 0:02:17.7]} 18... b6 {[%clk 0:02:29.7]} 19. c4 {[%clk 0:02:15]}
19... a5 {[%clk 0:02:14.2]} 20. Rd5 {[%clk 0:02:10.7]} 20... a4 {[%clk
0:02:11.7]} 21. Nd2 {[%clk 0:02:04.9]} 21... Nb4 {[%clk 0:02:05.2]} 22. Bxf4
{[%clk 0:01:38.5]} 22... Nxd5 {[%clk 0:02:01.5]} 23. cxd5 {[%clk 0:01:39.4]}
23... exf4 {[%clk 0:02:01.2]} 24. Nc4 {[%clk 0:01:35.6]} 24... b5 {[%clk
0:01:56.2]} 25. Na5 {[%clk 0:01:34]} 25... Qa3 {[%clk 0:01:46.3]} 26. Nc6 {[%clk
0:01:33.5]} 26... Qxa2 {[%clk 0:01:46.2]} 27. Qf1 {[%clk 0:01:28.3]} 27... Qxc2
{[%clk 0:01:32.4]} 28. Nxd8 {[%clk 0:01:27.5]} 28... Rxd8 {[%clk 0:01:31.4]} 29.
Qxb5 {[%clk 0:01:27.8]} 29... a3 {[%clk 0:01:26.7]} 30. Qb3 {[%clk 0:01:26.3]}
30... Qc5+ {[%clk 0:01:14.9]} 31. Kf1 {[%clk 0:01:24]} 31... Ra8 {[%clk
0:01:15]} 32. Qb7 {[%clk 0:01:21.6]} 32... Ra7 {[%clk 0:01:12.8]} 33. Qb3 {[%clk
0:01:17.1]} 33... a2 {[%clk 0:01:11.3]} 34. Ra1 {[%clk 0:01:14.7]} 34... Ra3
{[%clk 0:01:08.8]} 35. Qb2 {[%clk 0:01:04.8]} 35... Qc4+ {[%clk 0:01:06.8]} 36.
Kg1 {[%clk 0:01:02.6]} 36... Qa4 {[%clk 0:01:06.4]} 37. h3 {[%clk 0:00:56.7]}
37... Kh7 {[%clk 0:01:00.6]} 38. Kh2 {[%clk 0:00:56.4]} 38... Qa7 {[%clk
0:00:56.5]} 39. e5 {[%clk 0:00:51.6]} 39... Kg8 {[%clk 0:00:52.5]} 40. d6 {[%clk
0:00:50.9]} 40... cxd6 {[%clk 0:00:52.7]} 41. exd6 {[%clk 0:00:51.8]} 41... Ra6
{[%clk 0:00:48.5]} 42. Qe5 {[%clk 0:00:36.7]} 42... Qe3 {[%clk 0:00:34.2]} 43.
d7 {[%clk 0:00:09.9]} 43... Qxe5 {[%clk 0:00:29.6]} 44. d8=Q+ {[%clk 0:00:09.9]}
44... Kh7 {[%clk 0:00:29.7]} 45. Qd3+ {[%clk 0:00:10.5]} 45... g6 {[%clk
0:00:27.4]} 46. Qxa6 {[%clk 0:00:08.7]} 46... Qxa1 {[%clk 0:00:27.2]} 47. Qa7
{[%clk 0:00:09.1]} 47... Qf6 {[%clk 0:00:18.9]} 48. Qxa2 {[%clk 0:00:08.2]}
48... Qg5 {[%clk 0:00:19.3]} 49. Qxf7+ {[%clk 0:00:07.4]} 49... Kh8 {[%clk
0:00:19.7]} 50. Qf8+ {[%clk 0:00:07.7]} 50... Kh7 {[%clk 0:00:20.1]} 51. Qe8
{[%clk 0:00:06.8]} 51... Kg7 {[%clk 0:00:19.9]} 52. Qd7+ {[%clk 0:00:06.1]}
52... Kf6 {[%clk 0:00:19.7]} 53. Qd8+ {[%clk 0:00:05.8]} 53... Kf5 {[%clk
0:00:19.5]} 54. Qd5+ {[%clk 0:00:06.4]} 54... Kf6 {[%clk 0:00:19.4]} 55. Qe4
{[%clk 0:00:07.1]} 55... Qg3+ {[%clk 0:00:18.7]} 56. Kg1 {[%clk 0:00:07.7]}
56... Kg5 {[%clk 0:00:17.1]} 57. Qe7+ {[%clk 0:00:07.5]} 57... Kh5 {[%clk
0:00:16.8]} 58. Qe5+ {[%clk 0:00:07.4]} 58... Qg5 {[%clk 0:00:16.3]} 59. Qe8
{[%clk 0:00:06.5]} 59... Kh4 {[%clk 0:00:15.6]} 60. Qe6 {[%clk 0:00:05.7]} 60...
Qc5+ {[%clk 0:00:13.9]} 61. Kh2 {[%clk 0:00:04]} 61... Qg5 {[%clk 0:00:13.9]}
62. Qe1+ {[%clk 0:00:03.8]} 62... Kh5 {[%clk 0:00:13.9]} 63. Qf2 {[%clk
0:00:02.9]} 63... Qe5 {[%clk 0:00:11.9]} 64. Qc2 {[%clk 0:00:01.9]} 64... Qg5
{[%clk 0:00:09.9]} 65. Qf2 {[%clk 0:00:02.3]} 65... Qe5 {[%clk 0:00:10.1]} 66.
Qf1 {[%clk 0:00:02.9]} 66... Qe3 {[%clk 0:00:10.3]} 67. Qb5+ {[%clk 0:00:03.5]}
67... g5 {[%clk 0:00:09.9]} 68. Qd7 {[%clk 0:00:02.9]} 68... Qf2 {[%clk
0:00:07.9]} 69. Qe8+ {[%clk 0:00:02.8]} 69... Kh4 {[%clk 0:00:07.9]} 70. Qg6
{[%clk 0:00:03.1]} 70... Qg3+ {[%clk 0:00:08]} 71. Kg1 {[%clk 0:00:03.5]} 71...
h5 {[%clk 0:00:08.5]} 72. Qb1 {[%clk 0:00:02.1]} 72... g4 {[%clk 0:00:06.7]} 73.
fxg4 {[%clk 0:00:02.4]} 73... hxg4 {[%clk 0:00:06.6]} 74. Qh7+ {[%clk
0:00:02.5]} 74... Kg5 {[%clk 0:00:06.8]} 75. Qg7+ {[%clk 0:00:03.1]} 75... Kf5
{[%clk 0:00:07]} 76. Qd7+ {[%clk 0:00:02.9]} 76... Kg5 {[%clk 0:00:06.8]} 77.
Qg7+ {[%clk 0:00:03]} 77... Kf5 {[%clk 0:00:06.6]} 78. Qh7+ {[%clk 0:00:02.5]}
78... Kg5 {[%clk 0:00:06.3]} 79. Qe7+ {[%clk 0:00:01.1]} 79... Kf5 {[%clk
0:00:05.9]} 80. Qf7+ {[%clk 0:00:02]} 80... Ke4 {[%clk 0:00:04.9]} 81. Qg8
{[%clk 0:00:02.9]} 81... gxh3 {[%clk 0:00:04.5]} 82. Qxg3 {[%clk 0:00:02.8]}
82... fxg3 {[%clk 0:00:04.6]} 83. gxh3 {[%clk 0:00:03.7]} 83... Kf3 {[%clk
0:00:05.1]} 84. h4 {[%clk 0:00:04.1]} 84... Kg4 {[%clk 0:00:04.4]} 85. Kg2
{[%clk 0:00:04.2]} 85... Kxh4 {[%clk 0:00:04.6]} 86. Kg1 {[%clk 0:00:04.9]}
86... Kh3 {[%clk 0:00:05]} 87. Kh1 {[%clk 0:00:05.3]} 87... g2+ {[%clk
0:00:04.6]} 88. Kg1 {[%clk 0:00:05.8]} 88... Kg3 {[%clk 0:00:05.1]} 1/2-1/2

[Event "Late-Titled-Tuesday-Blitz-April-30-2024"]
[Site "Chess.com"]
[Date "2024.04.30"]
[Round "8"]
[White "WindWhistler11"]
[Black "GalaxyRoman"]
[Result "1-0"]
[WhiteElo "2575"]
[BlackElo "2738"]
[TimeControl "180+1"]
[EndTime "15:30:38 PDT"]
[Termination "WindWhistler11 won by checkmate"]

1. Nf3 {[%clk 0:02:40.6]} 1... Nf6 {[%clk 0:02:58.9]} 2. g3 {[%clk 0:02:40.3]}
2... g6 {[%clk 0:02:59.6]} 3. Bg2 {[%clk 0:02:41.1]} 3... Bg7 {[%clk 0:03:00.5]}
4. c4 {[%clk 0:02:41.4]} 4... O-O {[%clk 0:03:01.4]} 5. O-O {[%clk 0:02:42]}
5... d5 {[%clk 0:03:01.9]} 6. Nc3 {[%clk 0:02:42.7]} 6... dxc4 {[%clk
0:03:01.7]} 7. Ne5 {[%clk 0:02:41.6]} 7... Nc6 {[%clk 0:02:58.9]} 8. Nxc4 {[%clk
0:02:40.1]} 8... Be6 {[%clk 0:02:45.8]} 9. Qa4 {[%clk 0:02:32.3]} 9... Qd7
{[%clk 0:02:40.7]} 10. d3 {[%clk 0:02:17.3]} 10... a6 {[%clk 0:02:39.1]} 11.
Bxc6 {[%clk 0:02:08.9]} 11... bxc6 {[%clk 0:02:37.2]} 12. Ne5 {[%clk 0:02:05]}
12... Qd6 {[%clk 0:02:28.7]} 13. Bf4 {[%clk 0:01:46.4]} 13... Qc5 {[%clk
0:02:28.3]} 14. Qxc6 {[%clk 0:01:38.3]} 14... Qb4 {[%clk 0:02:18.2]} 15. Rab1
{[%clk 0:01:32.3]} 15... Nh5 {[%clk 0:02:14.8]} 16. Qe4 {[%clk 0:01:27.5]} 16...
Qxe4 {[%clk 0:02:04.9]} 17. Nxe4 {[%clk 0:01:27.3]} 17... Nxf4 {[%clk
0:02:04.4]} 18. gxf4 {[%clk 0:01:26.7]} 18... f6 {[%clk 0:01:50.2]} 19. Nc6
{[%clk 0:01:23.4]} 19... Kf7 {[%clk 0:01:49.4]} 20. b3 {[%clk 0:01:18.4]} 20...
Bh6 {[%clk 0:01:17.6]} 21. e3 {[%clk 0:01:16.9]} 21... Rg8 {[%clk 0:01:16.9]}
22. Nd4 {[%clk 0:01:05.7]} 22... g5 {[%clk 0:01:02.1]} 23. f5 {[%clk 0:01:01.5]}
23... Bd5 {[%clk 0:01:02]} 24. Rbc1 {[%clk 0:00:57.7]} 24... Rac8 {[%clk
0:00:57]} 25. Rc5 {[%clk 0:00:55]} 25... Rgd8 {[%clk 0:00:56.4]} 26. Rfc1 {[%clk
0:00:49.6]} 26... Rd7 {[%clk 0:00:54.1]} 27. Nc3 {[%clk 0:00:42.5]} 27... Bb7
{[%clk 0:00:51.9]} 28. Na4 {[%clk 0:00:42.6]} 28... Bf8 {[%clk 0:00:45.8]} 29.
Ne6 {[%clk 0:00:29.5]} 29... Rxd3 {[%clk 0:00:37.6]} 30. Rxc7 {[%clk 0:00:25.9]}
30... Rxc7 {[%clk 0:00:37.7]} 31. Nxc7 {[%clk 0:00:25]} 31... Bf3 {[%clk
0:00:27.7]} 32. Nc5 {[%clk 0:00:20.8]} 32... Rd2 {[%clk 0:00:25.4]} 33. a4
{[%clk 0:00:17.9]} 33... g4 {[%clk 0:00:24.7]} 34. N7e6 {[%clk 0:00:15.1]} 34...
Bh6 {[%clk 0:00:20.9]} 35. Nxa6 {[%clk 0:00:12]} 35... Be4 {[%clk 0:00:12.7]}
36. Nb4 {[%clk 0:00:10.8]} 36... Bxf5 {[%clk 0:00:11.4]} 37. Nd4 {[%clk
0:00:11.5]} 37... Be4 {[%clk 0:00:11.4]} 38. a5 {[%clk 0:00:09.9]} 38... e5
{[%clk 0:00:11.2]} 39. Nb5 {[%clk 0:00:09.6]} 39... Rb2 {[%clk 0:00:05.7]} 40.
Nd6+ {[%clk 0:00:07]} 40... Kg6 {[%clk 0:00:05.5]} 41. Nxe4 {[%clk 0:00:07.9]}
41... Rxb3 {[%clk 0:00:05.9]} 42. Nc6 {[%clk 0:00:06.4]} 42... Ra3 {[%clk
0:00:06]} 43. Nd6 {[%clk 0:00:05.9]} 43... Bg7 {[%clk 0:00:04.9]} 44. Ne7+
{[%clk 0:00:05.9]} 44... Kg5 {[%clk 0:00:04]} 45. Nc6 {[%clk 0:00:06.6]} 45...
Bf8 {[%clk 0:00:04]} 46. Ne4+ {[%clk 0:00:06.5]} 46... Kg6 {[%clk 0:00:04.3]}
47. Nd2 {[%clk 0:00:07]} 47... Bb4 {[%clk 0:00:04.2]} 48. Nc4 {[%clk 0:00:07]}
48... Ra2 {[%clk 0:00:04.8]} 49. Kg2 {[%clk 0:00:07]} 49... h5 {[%clk
0:00:04.1]} 50. Kg3 {[%clk 0:00:06.2]} 50... Kg5 {[%clk 0:00:04.5]} 51. h4+
{[%clk 0:00:06.7]} 51... Kg6 {[%clk 0:00:04.8]} 52. Rb1 {[%clk 0:00:04.1]} 52...
Bc5 {[%clk 0:00:04.2]} 53. Rb5 {[%clk 0:00:04]} 53... Bf8 {[%clk 0:00:03.9]} 54.
N6xe5+ {[%clk 0:00:04.3]} 54... fxe5 {[%clk 0:00:03.9]} 55. Nxe5+ {[%clk
0:00:05.2]} 55... Kg7 {[%clk 0:00:03.8]} 56. Nd3 {[%clk 0:00:05.9]} 56... Bd6+
{[%clk 0:00:04]} 57. Nf4 {[%clk 0:00:06.7]} 57... Ra3 {[%clk 0:00:02.2]} 58.
Rg5+ {[%clk 0:00:06.2]} 58... Kf7 {[%clk 0:00:02.2]} 59. Rf5+ {[%clk 0:00:06]}
59... Kg7 {[%clk 0:00:02.2]} 60. Rg5+ {[%clk 0:00:04.2]} 60... Kf7 {[%clk
0:00:02.5]} 61. Rxh5 {[%clk 0:00:04.7]} 61... Bb4 {[%clk 0:00:02.7]} 62. Kxg4
{[%clk 0:00:04.7]} 62... Bxa5 {[%clk 0:00:02.5]} 63. Kf3 {[%clk 0:00:05.1]}
63... Be1 {[%clk 0:00:02.6]} 64. Rf5+ {[%clk 0:00:05.4]} 64... Kg7 {[%clk
0:00:02.7]} 65. Ng2 {[%clk 0:00:06]} 65... Ba5 {[%clk 0:00:01.8]} 66. Rg5+
{[%clk 0:00:06.6]} 66... Kh6 {[%clk 0:00:02.1]} 67. Nf4 {[%clk 0:00:07]} 67...
Bd8 {[%clk 0:00:02.7]} 68. Rg6+ {[%clk 0:00:07.4]} 68... Kh7 {[%clk 0:00:03.2]}
69. h5 {[%clk 0:00:08.2]} 69... Be7 {[%clk 0:00:02.9]} 70. Re6 {[%clk
0:00:08.8]} 70... Bf8 {[%clk 0:00:03.1]} 71. Ng6 {[%clk 0:00:09.5]} 71... Bg7
{[%clk 0:00:03.5]} 72. Re7 {[%clk 0:00:09.8]} 72... Kh6 {[%clk 0:00:03.6]} 73.
Nf4 {[%clk 0:00:10.3]} 73... Bf6 {[%clk 0:00:03]} 74. Re6 {[%clk 0:00:10.5]}
74... Kg5 {[%clk 0:00:03.1]} 75. Nh3+ {[%clk 0:00:10.9]} 75... Kf5 {[%clk
0:00:03.3]} 76. Rc6 {[%clk 0:00:10]} 76... Ra8 {[%clk 0:00:02.6]} 77. e4+ {[%clk
0:00:08.3]} 77... Ke5 {[%clk 0:00:02.9]} 78. Rc5+ {[%clk 0:00:08.8]} 78... Ke6
{[%clk 0:00:03.2]} 79. Rc6+ {[%clk 0:00:09]} 79... Ke5 {[%clk 0:00:03.3]} 80.
Nf4 {[%clk 0:00:09.7]} 80... Bg5 {[%clk 0:00:02.6]} 81. Nd3+ {[%clk 0:00:09.2]}
81... Kd4 {[%clk 0:00:03]} 82. Rd6+ {[%clk 0:00:09.7]} 82... Kc4 {[%clk
0:00:03]} 83. Rd5 {[%clk 0:00:10.2]} 83... Rf8+ {[%clk 0:00:02.9]} 84. Kg4
{[%clk 0:00:10.3]} 84... Bh6 {[%clk 0:00:03.2]} 85. Ne5+ {[%clk 0:00:10.8]}
85... Kc3 {[%clk 0:00:02.8]} 86. f3 {[%clk 0:00:10.7]} 86... Rf4+ {[%clk
0:00:03]} 87. Kg3 {[%clk 0:00:10.8]} 87... Rf6 {[%clk 0:00:03.6]} 88. Ng4 {[%clk
0:00:11.3]} 88... Bf4+ {[%clk 0:00:03.4]} 89. Kh4 {[%clk 0:00:11.1]} 89... Rf7
{[%clk 0:00:03.9]} 90. Rf5 {[%clk 0:00:11.6]} 90... Rxf5 {[%clk 0:00:02.9]} 91.
exf5 {[%clk 0:00:12.5]} 91... Kd4 {[%clk 0:00:03.8]} 92. f6 {[%clk 0:00:12.5]}
92... Kd5 {[%clk 0:00:03.1]} 93. f7 {[%clk 0:00:12.3]} 93... Bd6 {[%clk
0:00:03.7]} 94. h6 {[%clk 0:00:12.9]} 94... Ke6 {[%clk 0:00:03.8]} 95. h7 {[%clk
0:00:13.5]} 95... Kxf7 {[%clk 0:00:04.2]} 96. h8=Q {[%clk 0:00:14]} 96... Be7+
{[%clk 0:00:05.1]} 97. Kh3 {[%clk 0:00:13.4]} 97... Ke6 {[%clk 0:00:05.5]} 98.
Qh5 {[%clk 0:00:13.8]} 98... Kd7 {[%clk 0:00:05]} 99. Kg2 {[%clk 0:00:14.7]}
99... Kc8 {[%clk 0:00:05.6]} 100. Kf1 {[%clk 0:00:15.6]} 100... Kd7 {[%clk
0:00:06.5]} 101. Ke2 {[%clk 0:00:16.2]} 101... Kd8 {[%clk 0:00:06.4]} 102. Kd3
{[%clk 0:00:17.1]} 102... Kd7 {[%clk 0:00:07.3]} 103. Ke4 {[%clk 0:00:17.9]}
103... Kd8 {[%clk 0:00:08.2]} 104. Kd5 {[%clk 0:00:18.6]} 104... Kd7 {[%clk
0:00:09.1]} 105. Qf5+ {[%clk 0:00:18.7]} 105... Kd8 {[%clk 0:00:10]} 106. Ne5
{[%clk 0:00:18.5]} 106... Ke8 {[%clk 0:00:10.4]} 107. Ke6 {[%clk 0:00:16.8]}
107... Bd8 {[%clk 0:00:11.3]} 108. Qf7# {[%clk 0:00:16.8]} 1-0

[Event "Late-Titled-Tuesday-Blitz-April-30-2024"]
[Site "Chess.com"]
[Date "2024.04.30"]
[Round "9"]
[White "PNEPaul"]
[Black "stepanosinovsky"]
[Result "1-0"]
[WhiteElo "1976"]
[BlackElo "2331"]
[TimeControl "180+1"]
[EndTime "15:40:03 PDT"]
[Termination "PNEPaul won by resignation"]

1. e4 {[%clk 0:02:59.6]} 1... e5 {[%clk 0:02:57.2]} 2. Nf3 {[%clk 0:02:59.5]}
2... Nc6 {[%clk 0:02:56.4]} 3. Bc4 {[%clk 0:02:59.4]} 3... Nf6 {[%clk
0:02:54.8]} 4. d4 {[%clk 0:02:58.9]} 4... exd4 {[%clk 0:02:51]} 5. O-O {[%clk
0:02:58.9]} 5... Bc5 {[%clk 0:02:50]} 6. e5 {[%clk 0:02:58.5]} 6... d5 {[%clk
0:02:49]} 7. exf6 {[%clk 0:02:58.6]} 7... dxc4 {[%clk 0:02:48.4]} 8. Re1+ {[%clk
0:02:58.8]} 8... Be6 {[%clk 0:02:48.7]} 9. Ng5 {[%clk 0:02:58.8]} 9... Qd5
{[%clk 0:02:46.8]} 10. Nc3 {[%clk 0:02:58.7]} 10... Qf5 {[%clk 0:02:43.3]} 11.
Nce4 {[%clk 0:02:58.6]} 11... O-O-O {[%clk 0:02:41.6]} 12. Nxe6 {[%clk
0:02:58.6]} 12... fxe6 {[%clk 0:02:38.9]} 13. Bg5 {[%clk 0:02:58.4]} 13... Rdf8
{[%clk 0:01:51.2]} 14. fxg7 {[%clk 0:02:55.2]} 14... d3 {[%clk 0:01:41]} 15.
gxf8=Q+ {[%clk 0:02:32.1]} 15... Rxf8 {[%clk 0:01:38]} 16. cxd3 {[%clk
0:02:06.6]} 16... Bxf2+ {[%clk 0:01:33.2]} 17. Nxf2 {[%clk 0:02:05.6]} 1-0

[Event "Late-Titled-Tuesday-Blitz-April-30-2024"]
[Site "Chess.com"]
[Date "2024.04.30"]
[Round "9"]
[White "nicolasbatista3"]
[Black "xberli"]
[Result "0-1"]
[WhiteElo "2454"]
[BlackElo "2637"]
[TimeControl "180+1"]
[EndTime "15:40:08 PDT"]
[Termination "xberli won by resignation"]

1. d4 {[%clk 0:02:56]} 1... Nf6 {[%clk 0:02:58]} 2. c4 {[%clk 0:02:56.5]} 2...
g6 {[%clk 0:02:56.6]} 3. Nc3 {[%clk 0:02:57.1]} 3... d5 {[%clk 0:02:56.9]} 4.
cxd5 {[%clk 0:02:58]} 4... Nxd5 {[%clk 0:02:57.3]} 5. e4 {[%clk 0:02:58.7]} 5...
Nxc3 {[%clk 0:02:58]} 6. bxc3 {[%clk 0:02:59.4]} 6... Bg7 {[%clk 0:02:58.3]} 7.
Bc4 {[%clk 0:02:59.8]} 7... c5 {[%clk 0:02:58.7]} 8. Ne2 {[%clk 0:03:00]} 8...
Nc6 {[%clk 0:02:56.9]} 9. Be3 {[%clk 0:02:59.8]} 9... O-O {[%clk 0:02:56.7]} 10.
O-O {[%clk 0:02:59.8]} 10... b6 {[%clk 0:02:57.1]} 11. Rc1 {[%clk 0:02:59.4]}
11... Bb7 {[%clk 0:02:55.1]} 12. Qd2 {[%clk 0:02:50.9]} 12... Rc8 {[%clk
0:02:53.1]} 13. Rfd1 {[%clk 0:02:50.1]} 13... cxd4 {[%clk 0:02:49.8]} 14. cxd4
{[%clk 0:02:48.6]} 14... Qd7 {[%clk 0:02:47.6]} 15. e5 {[%clk 0:02:09.2]} 15...
e6 {[%clk 0:02:41.1]} 16. h4 {[%clk 0:02:08.3]} 16... Ne7 {[%clk 0:02:26.4]} 17.
h5 {[%clk 0:02:05]} 17... Rxc4 {[%clk 0:02:23.1]} 18. Rxc4 {[%clk 0:01:33.3]}
18... Qd5 {[%clk 0:02:22.2]} 19. f3 {[%clk 0:01:17.7]} 19... Qxc4 {[%clk
0:02:21]} 20. Bh6 {[%clk 0:01:17.8]} 20... Bxh6 {[%clk 0:02:14.9]} 21. Qxh6
{[%clk 0:01:18]} 21... Nf5 {[%clk 0:02:15.2]} 22. Rd2 {[%clk 0:01:18.9]} 22...
Nxh6 {[%clk 0:02:14.6]} 0-1

[Event "Late-Titled-Tuesday-Blitz-April-30-2024"]
[Site "Chess.com"]
[Date "2024.04.30"]
[Round "9"]
[White "samidescalona2002"]
[Black "TheAlienParty"]
[Result "1-0"]
[WhiteElo "2758"]
[BlackElo "2425"]
[TimeControl "180+1"]
[EndTime "15:40:31 PDT"]
[Termination "samidescalona2002 won by checkmate"]

1. Nf3 {[%clk 0:03:00.9]} 1... d5 {[%clk 0:02:59]} 2. d3 {[%clk 0:03:01]} 2...
g6 {[%clk 0:02:57.7]} 3. Nbd2 {[%clk 0:03:01.9]} 3... Bg7 {[%clk 0:02:57.5]} 4.
g3 {[%clk 0:03:02.8]} 4... e5 {[%clk 0:02:56.6]} 5. Bg2 {[%clk 0:03:03.5]} 5...
Ne7 {[%clk 0:02:52.5]} 6. O-O {[%clk 0:03:03.8]} 6... O-O {[%clk 0:02:52.3]} 7.
e4 {[%clk 0:03:04.3]} 7... d4 {[%clk 0:02:49.2]} 8. Nc4 {[%clk 0:03:03]} 8...
Nd7 {[%clk 0:02:44.3]} 9. a4 {[%clk 0:03:02.3]} 9... c5 {[%clk 0:02:41.3]} 10.
Nfd2 {[%clk 0:02:56.7]} 10... Qc7 {[%clk 0:02:40.4]} 11. f4 {[%clk 0:02:56.6]}
11... exf4 {[%clk 0:02:31.4]} 12. gxf4 {[%clk 0:02:55.2]} 12... f5 {[%clk
0:02:28.3]} 13. e5 {[%clk 0:02:55.2]} 13... Rb8 {[%clk 0:02:25.7]} 14. Nd6
{[%clk 0:02:54.1]} 14... b6 {[%clk 0:02:21.9]} 15. Nxc8 {[%clk 0:02:49.8]} 15...
Rbxc8 {[%clk 0:02:19.7]} 16. Nc4 {[%clk 0:02:50.7]} 16... Rcd8 {[%clk
0:02:12.2]} 17. Qe2 {[%clk 0:02:46.3]} 17... a6 {[%clk 0:02:11.5]} 18. Bd2
{[%clk 0:02:43.2]} 18... b5 {[%clk 0:02:01.9]} 19. axb5 {[%clk 0:02:42.6]} 19...
axb5 {[%clk 0:02:01.5]} 20. Ba5 {[%clk 0:02:43.1]} 20... Qb8 {[%clk 0:01:58.2]}
21. Bxd8 {[%clk 0:02:42.2]} 21... Rxd8 {[%clk 0:01:56.6]} 22. Nd6 {[%clk
0:02:41.3]} 22... Nc8 {[%clk 0:01:55.2]} 23. Ra8 {[%clk 0:02:40.9]} 23... Qc7
{[%clk 0:01:54]} 24. Rfa1 {[%clk 0:02:24.4]} 24... b4 {[%clk 0:01:38.2]} 25.
Nxc8 {[%clk 0:02:17.7]} 25... Rxc8 {[%clk 0:01:37.8]} 26. Rxc8+ {[%clk
0:02:18.4]} 26... Qxc8 {[%clk 0:01:37.7]} 27. Ra8 {[%clk 0:02:19.1]} 27... Nb8
{[%clk 0:01:37.6]} 28. Qf3 {[%clk 0:02:16.5]} 28... Kf7 {[%clk 0:01:34.5]} 29.
Qd5+ {[%clk 0:02:15.6]} 29... Ke8 {[%clk 0:01:32.7]} 30. Qd6 {[%clk 0:02:06.6]}
30... Na6 {[%clk 0:01:25.5]} 31. Rxc8+ {[%clk 0:02:05.5]} 31... Kf7 {[%clk
0:01:24.3]} 32. Bd5# {[%clk 0:02:06.2]} 1-0

[Event "Late-Titled-Tuesday-Blitz-April-30-2024"]
[Site "Chess.com"]
[Date "2024.04.30"]
[Round "9"]
[White "Atanejhad"]
[Black "zano2023"]
[Result "1-0"]
[WhiteElo "2452"]
[BlackElo "2171"]
[TimeControl "180+1"]
[EndTime "15:41:12 PDT"]
[Termination "Atanejhad won by resignation"]

1. d4 {[%clk 0:02:45.7]} 1... d6 {[%clk 0:02:57.1]} 2. c4 {[%clk 0:02:45.1]}
2... Nf6 {[%clk 0:02:56.9]} 3. Nc3 {[%clk 0:02:44.8]} 3... Nbd7 {[%clk
0:02:55.7]} 4. e4 {[%clk 0:02:43.9]} 4... e5 {[%clk 0:02:56.3]} 5. Nf3 {[%clk
0:02:42.6]} 5... c6 {[%clk 0:02:55]} 6. h3 {[%clk 0:02:39.2]} 6... Be7 {[%clk
0:02:55.6]} 7. Be3 {[%clk 0:02:38.7]} 7... O-O {[%clk 0:02:56.3]} 8. Be2 {[%clk
0:02:38.1]} 8... Re8 {[%clk 0:02:57]} 9. O-O {[%clk 0:02:37.6]} 9... Qc7 {[%clk
0:02:57.6]} 10. d5 {[%clk 0:02:37]} 10... Nf8 {[%clk 0:02:57.9]} 11. b4 {[%clk
0:02:32.2]} 11... Ng6 {[%clk 0:02:58.5]} 12. a4 {[%clk 0:02:30.9]} 12... Bd7
{[%clk 0:02:59.1]} 13. Qb3 {[%clk 0:02:26.8]} 13... b6 {[%clk 0:02:56.5]} 14.
dxc6 {[%clk 0:02:20]} 14... Bxc6 {[%clk 0:02:56.1]} 15. Bd3 {[%clk 0:02:12.4]}
15... Qb7 {[%clk 0:02:54.7]} 16. Nd5 {[%clk 0:02:06.1]} 16... Nxd5 {[%clk
0:02:47.5]} 17. cxd5 {[%clk 0:02:07]} 17... Bd7 {[%clk 0:02:47.7]} 18. a5 {[%clk
0:02:00.6]} 18... bxa5 {[%clk 0:02:43.2]} 19. Rxa5 {[%clk 0:02:01.5]} 19... Reb8
{[%clk 0:02:39.2]} 20. b5 {[%clk 0:01:57.1]} 20... Bd8 {[%clk 0:02:36.6]} 21.
Ra6 {[%clk 0:01:51.7]} 21... Bb6 {[%clk 0:02:35.4]} 22. Bxb6 {[%clk 0:01:47.1]}
22... axb6 {[%clk 0:02:29.9]} 23. Rc1 {[%clk 0:01:45.4]} 23... Rc8 {[%clk
0:02:25.2]} 24. Rc6 {[%clk 0:01:40.8]} 24... Bxc6 {[%clk 0:02:22.8]} 25. dxc6
{[%clk 0:01:40]} 25... Qc7 {[%clk 0:02:16.6]} 26. Qa4 {[%clk 0:01:34.6]} 26...
Rxa6 {[%clk 0:02:13.1]} 27. Qxa6 {[%clk 0:01:35.5]} 27... Rb8 {[%clk 0:02:07.2]}
28. Bc4 {[%clk 0:01:32.8]} 28... h6 {[%clk 0:02:03.4]} 29. Ne1 {[%clk
0:01:27.5]} 29... Nf4 {[%clk 0:02:02.3]} 30. Nc2 {[%clk 0:01:24.3]} 30... Ne6
{[%clk 0:01:58.1]} 31. Ne3 {[%clk 0:01:19.5]} 31... Nc5 {[%clk 0:01:57.7]} 32.
Qa2 {[%clk 0:01:13]} 32... Nxe4 {[%clk 0:01:53.6]} 33. Nd5 {[%clk 0:01:12.7]}
33... Qc8 {[%clk 0:01:49.9]} 34. Ne7+ {[%clk 0:01:12]} 1-0